fUST/lending_fUST_20250308
["ID","MTS","AMOUNT","RATE_DAILY","PERIOD"]
[355643013,1741422643315,-250.0,0.000492,30]
[355643015,1741422643324,-250.0,0.000492,30]
[355643017,1741422643334,-151.0,0.000492,120]
[355643019,1741422643343,-1526.054231,0.000492,120]
[355643021,1741422643352,-1526.054231,0.000492,120]
[355643023,1741422643362,-18969.6705833,0.000492,4]
[355643025,1741422643371,-4742.41764583,0.00049205,4]
[355643027,1741422643381,-200000.0,0.0004921,30]
[355643029,1741422643390,-1526.054231,0.0004921,120]
[355643031,1741422643400,-1526.054231,0.0004921,120]
[355643033,1741422643409,-433.30106728,0.0004921,120]
[355643035,1741422643418,-205.10629416,0.00049215,2]
[355643037,1741422643427,-3000.0,0.00049215,2]
[355643039,1741422643436,-55555.0,0.00049215,120]
[355643041,1741422643445,-500.0,0.00049224,99]
[355643043,1741422643455,-800.0,0.00049262,14]
[355643045,1741422643467,-4742.41764583,0.0004927,4]
[355643047,1741422643476,-1000.0,0.0004927,120]
[355643049,1741422643485,-502.63650637,0.00049273,10]
[355643051,1741422643497,-500.0,0.00049273,10]
[355643053,1741422643506,-500.0,0.00049273,10]
[355643055,1741422643515,-500.0,0.00049273,10]
[355643057,1741422643526,-500.0,0.00049273,10]
[355643059,1741422643536,-500.0,0.00049273,10]
[355643061,1741422643546,-607.92363618,0.00049273,10]
[355643063,1741422643555,-500.0,0.00049273,10]
[355643065,1741422643564,-500.0,0.00049273,10]
[355643067,1741422643573,-500.0,0.00049273,10]
[355643069,1741422643583,-500.0,0.00049273,10]
[355643071,1741422643593,-500.0,0.00049273,10]
[355643073,1741422643601,-500.0,0.00049273,10]
[355643075,1741422643611,-160.36975611,0.00049273,2]
[355643077,1741422643620,-500.0,0.00049273,2]
[355643079,1741422643629,-500.0,0.00049273,10]
[355643081,1741422643638,-500.0,0.00049273,10]
[355643083,1741422643648,-1295.176433,0.0004928,21]
[355643085,1741422643657,-1000.0,0.000493,21]
[355643087,1741422643666,-1526.054231,0.00049305,120]
[355643089,1741422643675,-1526.054231,0.00049305,120]
[355643091,1741422643685,-37939.3411666,0.00049305,4]
[355643093,1741422643693,-2500.0,0.00049305,14]
[355643095,1741422643703,-2500.0,0.00049314,14]
[355643097,1741422643712,-500.0,0.00049315,120]
[355643099,1741422643721,-151.0,0.00049315,120]
[355643101,1741422643730,-285.78188656,0.00049315,2]
[355643103,1741422643739,-500.0,0.00049315,120]
[355643105,1741422643748,-500.0,0.00049315,120]
[355643107,1741422643757,-821.96,0.00049315,120]
[355643109,1741422643766,-500.0,0.00049315,120]
[355643111,1741422643776,-500.0,0.00049315,120]
[355643113,1741422643785,-500.0,0.00049315,120]
[355643115,1741422643794,-500.0,0.00049315,120]
[355643117,1741422643803,-500.0,0.00049315,120]
[355643119,1741422643812,-833.41,0.00049315,120]
[355643121,1741422643822,-500.0,0.00049315,120]
[355643123,1741422643831,-500.0,0.00049315,120]
[355643125,1741422643840,-500.0,0.00049315,120]
[355643127,1741422643849,-500.0,0.00049315,120]
[355643129,1741422643858,-333.0737851,0.00049315,120]
[355643131,1741422643867,-500.0,0.00049315,120]
[355643133,1741422643876,-393.42681778,0.00049315,120]
[355643135,1741422643886,-537.12330089,0.00049315,120]
[355643137,1741422643895,-500.0,0.00049315,120]
[355643139,1741422643905,-500.0,0.00049315,120]
[355643141,1741422643914,-500.0,0.00049315,120]
[355643143,1741422643924,-500.0,0.00049315,120]
[355643145,1741422643933,-500.0,0.00049315,120]
[355643147,1741422643942,-1526.054231,0.00049315,120]
[355643149,1741422643951,-1526.054231,0.00049315,120]
[355643151,1741422643960,-1526.054231,0.00049315,120]
[355643153,1741422643969,-1526.054231,0.00049315,120]
[355643155,1741422643979,-1526.054231,0.00049315,120]
[355643157,1741422643988,-1526.054231,0.00049315,120]
[355643159,1741422643997,-1526.054231,0.00049315,120]
[355643161,1741422644006,-1526.054231,0.00049315,120]
[355643163,1741422644015,-1526.054231,0.00049315,120]
[355643165,1741422644025,-1526.054231,0.00049315,120]
[355643167,1741422644034,-1526.054231,0.00049315,120]
[355643169,1741422644044,-1526.054231,0.00049315,120]
[355643171,1741422644053,-1710.23,0.00049315,120]
[355643173,1741422644063,-425.26701115,0.00049315,2]
[355643175,1741422644071,-500.0,0.00049315,120]
[355643177,1741422644081,-500.0,0.00049315,120]
[355643178,1741422644090,-833.33,0.00049315,2]
[355643179,1741422644099,-500.0,0.00049315,120]
[355643181,1741422644108,-500.0,0.00049315,120]
[355643183,1741422644118,-222.827466,0.00049315,120]
[355643185,1741422644128,-500.0,0.00049315,120]
[355643187,1741422644137,-833.45,0.00049315,120]
[355643189,1741422644147,-500.0,0.00049315,2]
[355643191,1741422644157,-500.0,0.00049315,120]
[355643193,1741422644167,-500.0,0.00049315,120]
[355643195,1741422644178,-615.23,0.00049315,120]
[355643197,1741422644187,-450.83335965,0.00049315,120]
[355643199,1741422644196,-500.0,0.00049315,120]
[355643201,1741422644206,-500.0,0.00049315,120]
[355643203,1741422644215,-515.91275467,0.00049315,120]
[355643205,1741422644224,-500.0,0.00049315,120]
[355643207,1741422644233,-510.39131851,0.00049315,120]
[355643209,1741422644243,-554.21590053,0.00049315,120]
[355643211,1741422644252,-500.0,0.00049315,120]
[355643213,1741422644262,-500.0,0.00049315,120]
[355643215,1741422644271,-322.06144267,0.00049315,5]
[355643217,1741422644282,-507.57861949,0.00049315,5]
[355643219,1741422644291,-500.0,0.00049315,120]
[355643221,1741422644300,-520.18476513,0.00049315,120]
[355643223,1741422644309,-500.0,0.00049315,120]
[355643225,1741422644318,-516.93947988,0.00049315,120]
[355643227,1741422644328,-535.74191994,0.00049315,120]
[355643229,1741422644338,-500.0,0.00049315,120]
[355643232,1741422644347,-500.0,0.00049315,120]
[355643233,1741422644356,-533.54438792,0.00049315,120]
[355643235,1741422644365,-513.97387247,0.00049315,120]
[355643237,1741422644375,-511.00117257,0.00049315,120]
[355643239,1741422644384,-4182.47,0.00049315,120]
[355643241,1741422644394,-564.24398665,0.00049315,120]
[355643243,1741422644403,-530.95530588,0.00049315,120]
[355643245,1741422644412,-500.0,0.00049315,120]
[355643247,1741422644421,-833.51,0.00049315,120]
[355643249,1741422644431,-500.0,0.00049315,120]
[355643260,1741422644531,-3386.38,0.00049315,120]
[355643262,1741422644541,-509.20289645,0.00049315,120]
[355643264,1741422644552,-500.0,0.00049315,120]
[355643265,1741422644561,-513.39043369,0.00049315,120]
[355643266,1741422644570,-531.75781548,0.00049315,120]
[355643267,1741422644580,-500.0,0.00049315,120]
[355643268,1741422644588,-500.0,0.00049315,120]
[355643269,1741422644598,-500.0,0.00049315,120]
[355643270,1741422644607,-848.57,0.00049315,120]
[355643271,1741422644617,-1250.09,0.00049315,120]
[355643272,1741422644626,-500.0,0.00049315,120]
[355643273,1741422644635,-500.0,0.00049315,120]
[355643274,1741422644645,-513.2813966,0.00049315,120]
[355643275,1741422644654,-508.69331106,0.00049315,120]
[355643276,1741422644664,-515.82755753,0.00049315,120]
[355643277,1741422644673,-519.53629376,0.00049315,120]
[355643278,1741422644682,-507.00040383,0.00049315,120]
[355643279,1741422644691,-503.66914482,0.00049315,120]
[355643280,1741422644701,-500.0,0.00049315,2]
[355643281,1741422644712,-516.22538291,0.00049315,120]
[355643282,1741422644721,-517.52283314,0.00049315,120]
[355643283,1741422644731,-500.0,0.00049315,120]
[355643284,1741422644740,-500.0,0.00049315,120]
[355643285,1741422644750,-500.0,0.00049315,120]
[355643286,1741422644760,-500.0,0.00049315,120]
[355643287,1741422644770,-512.96205649,0.00049315,120]
[355643288,1741422644779,-7653.35,0.00049315,2]
[355643289,1741422644788,-7653.35,0.00049315,2]
[355643290,1741422644799,-7653.35,0.00049315,2]
[355643291,1741422644818,-7653.35,0.00049315,2]
[355643292,1741422644828,-7653.35,0.00049315,2]
[355643293,1741422644839,-3725.04463144,0.00049315,2]
[355643297,1741422646042,-500.0,0.00049315,2]
[355643315,1741423535111,-4282.93381609,0.00034444,4]
[355643316,1741423600084,-206.90415627,0.00034443,2]
[355643317,1741423634084,-293.09584373,0.00034443,2]
[355643318,1741423634108,-8802.11816866,0.00034444,4]
[355643319,1741423639075,-980.95787142,0.00034444,4]
[355643320,1741423646114,-180.0,0.00034444,4]
[355643321,1741423652082,-1037.94743443,0.00034373,2]
[355643323,1741423745094,-420.448149,0.00032344,2]
[355643324,1741423745117,-490.48693198,0.00034373,2]
[355643325,1741423745139,-185.91503156,0.00034373,2]
[355643326,1741423745160,-1675.02801666,0.00034373,2]
[355643327,1741423745182,-212.20923008,0.00034434,2]
[355643328,1741423745204,-77593.2585219,0.00034444,4]
[355643329,1741423747080,-224768.06556424,0.00034444,4]
[355643330,1741423747102,-441.97090026,0.00034473,5]
[355643331,1741423747125,-508.15869348,0.00034473,5]
[355643332,1741423747147,-267.35900391,0.00034473,5]
[355643333,1741423747168,-1599.88,0.000345,30]
[355643334,1741423747189,-1841.79,0.000345,30]
[355643335,1741423747211,-161.834958,0.0003589,2]
[355643336,1741423747232,-216.65053364,0.000362,98]
[355643337,1741423747253,-420.448149,0.00037344,2]
[355643338,1741423747275,-1306.95053637,0.00037648,2]
[355643339,1741423751073,-221.48383003,0.00037648,2]
[355643340,1741423751097,-1528.4343664,0.00040924,28]
[355643341,1741423751122,-161.834958,0.00041507,2]
[355643342,1741423751143,-1675.02801666,0.00042137,2]
[355643343,1741423751165,-233.8321,0.000432,120]
[355643344,1741423751187,-204.393705,0.00043783,2]
[355643345,1741423751222,-1528.4343664,0.00044199,28]
[355643346,1741423751247,-1247.9958066,0.00044235,2]
[355643366,1741423838293,-475.88153512,0.000466,10]
[355643394,1741423843364,-30.68057985,0.000466,10]
[355643395,1741423843374,-299.3185905,0.000466,10]
[355643396,1741423843420,-200.6814095,0.000466,10]
[355643397,1741423843432,-161.834958,0.00047123,2]
[355643398,1741423843442,-1841.79,0.000473,30]
[355643399,1741423843452,-1599.88,0.000473,30]
[355643400,1741423843462,-200.0,0.00047776,120]
[355643401,1741423843472,-228.359,0.00047845,2]
[355643402,1741423843481,-1000.0,0.0004823,6]
[355643403,1741423843491,-425.9544364,0.00048328,4]
[355643404,1741423843501,-1000.0,0.00048367,6]
[355643407,1741423843510,-1000.0,0.00048504,6]
[355643409,1741423843519,-1000.0,0.00048641,6]
[355643410,1741423843529,-256.66666667,0.00048658,2]
[355643411,1741423843538,-12256.72363589,0.00048658,2]
[355643412,1741423843547,-502.78398,0.00048666,120]
[355643413,1741423843556,-502.78398,0.00048666,120]
[355643414,1741423843566,-502.78398,0.00048666,120]
[355643415,1741423843575,-502.78398,0.00048666,120]
[355643416,1741423843585,-502.78398,0.00048666,120]
[355643417,1741423843595,-502.78398,0.00048666,120]
[355643418,1741423843605,-502.78398,0.00048666,120]
[355643419,1741423843614,-502.78398,0.00048666,120]
[355643420,1741423843624,-502.78398,0.00048666,120]
[355643421,1741423843634,-502.78398,0.00048666,120]
[355643422,1741423843646,-502.78398,0.00048666,120]
[355643423,1741423843655,-502.78398,0.00048666,120]
[355643424,1741423843665,-502.78398,0.00048666,120]
[355643425,1741423843674,-502.78398,0.00048666,120]
[355643426,1741423843684,-502.78398,0.00048666,120]
[355643427,1741423843693,-502.78398,0.00048666,120]
[355643428,1741423843702,-502.78398,0.00048666,120]
[355643429,1741423843712,-502.78398,0.00048666,120]
[355643430,1741423843722,-502.78398,0.00048666,120]
[355643431,1741423843731,-502.78398,0.00048666,120]
[355643432,1741423843741,-502.78398,0.00048666,120]
[355643433,1741423843750,-502.78398,0.00048666,120]
[355643434,1741423843760,-502.78398,0.00048666,120]
[355643435,1741423843770,-502.78398,0.00048666,120]
[355643436,1741423843779,-502.78398,0.00048666,120]
[355643437,1741423843788,-502.78398,0.00048666,120]
[355643438,1741423843798,-502.78398,0.00048666,120]
[355643439,1741423843808,-502.78398,0.00048666,120]
[355643440,1741423843818,-502.78398,0.00048666,120]
[355643441,1741423843827,-502.78398,0.00048666,120]
[355643442,1741423843836,-502.78398,0.00048666,120]
[355643443,1741423843846,-502.78398,0.00048666,120]
[355643444,1741423843855,-502.78398,0.00048666,120]
[355643445,1741423843866,-502.78398,0.00048666,120]
[355643446,1741423843875,-502.78398,0.00048666,120]
[355643447,1741423843886,-502.78398,0.00048666,120]
[355643448,1741423843895,-502.78398,0.00048666,120]
[355643449,1741423843905,-502.78398,0.00048666,120]
[355643450,1741423843914,-502.78398,0.00048666,120]
[355643451,1741423843924,-502.78398,0.00048666,120]
[355643452,1741423843933,-502.78398,0.00048666,120]
[355643453,1741423843946,-502.78398,0.00048666,120]
[355643454,1741423843956,-502.78398,0.00048666,120]
[355643455,1741423843965,-502.78398,0.00048666,120]
[355643456,1741423843975,-502.78398,0.00048666,120]
[355643457,1741423843984,-502.78398,0.00048666,120]
[355643458,1741423843993,-502.78398,0.00048666,120]
[355643459,1741423844002,-502.78398,0.00048666,120]
[355643460,1741423844012,-502.78398,0.00048666,120]
[355643461,1741423844022,-502.78398,0.00048666,120]
[355643462,1741423844031,-502.78398,0.00048666,120]
[355643463,1741423844041,-502.78398,0.00048666,120]
[355643464,1741423844051,-502.78398,0.00048666,120]
[355643465,1741423844061,-502.78398,0.00048666,120]
[355643466,1741423844070,-502.78398,0.00048666,120]
[355643467,1741423844080,-502.78398,0.00048666,120]
[355643468,1741423844089,-502.78398,0.00048666,120]
[355643469,1741423844099,-502.78398,0.00048666,120]
[355643470,1741423844110,-502.78398,0.00048666,120]
[355643471,1741423844120,-502.78398,0.00048666,120]
[355643472,1741423844129,-502.78398,0.00048666,120]
[355643473,1741423844140,-502.78398,0.00048666,120]
[355643474,1741423844149,-502.78398,0.00048666,120]
[355643475,1741423844159,-502.78398,0.00048666,120]
[355643476,1741423844168,-502.78398,0.00048666,120]
[355643477,1741423844177,-600.0,0.00048771,2]
[355643478,1741423844187,-500.0,0.00048773,10]
[355643479,1741423844197,-1000.0,0.00048778,6]
[355643480,1741423844207,-212.20923008,0.0004879,4]
[355643481,1741423844216,-999.0,0.000488,120]
[355643482,1741423844226,-222000.0,0.000488,2]
[355643483,1741423844235,-500.0,0.00048873,10]
[355643484,1741423844244,-500.0,0.00048873,10]
[355643485,1741423844254,-500.0,0.00048873,10]
[355643486,1741423844263,-500.0,0.00048873,10]
[355643487,1741423844273,-503.13758744,0.00048873,10]
[355643488,1741423844282,-500.0,0.00048873,10]
[355643489,1741423844291,-500.0,0.00048873,10]
[355643491,1741423844301,-500.0,0.00048873,2]
[355643493,1741423844310,-500.0,0.00048873,2]
[355643495,1741423844319,-500.0,0.00048873,10]
[355643496,1741423844329,-500.0,0.00048873,10]
[355643497,1741423844338,-500.0,0.00048873,10]
[355643498,1741423844348,-3399.999,0.00048889,120]
[355643499,1741423844357,-207.88,0.000489,30]
[355643501,1741423844366,-1000.0,0.00048915,6]
[355643502,1741423844376,-453.897952,0.00049,10]
[355643503,1741423844386,-155.6453699,0.00049025,30]
[355643504,1741423844396,-153.0,0.00049025,30]
[355643505,1741423844405,-153.0,0.00049025,30]
[355643506,1741423844415,-1000.0,0.00049052,6]
[355643507,1741423844424,-1000.0,0.00049189,6]
[355643508,1741423844434,-6665.0,0.000492,120]
[355643509,1741423844443,-595.42973364,0.000492,14]
[355643510,1741423844453,-3000.0,0.00049215,2]
[355643511,1741423844463,-55555.0,0.00049215,120]
[355643512,1741423844472,-800.0,0.00049237,14]
[355643513,1741423844482,-3139.8,0.00049256,120]
[355643514,1741423844491,-3139.8,0.00049256,120]
[355643515,1741423844501,-3139.8,0.00049256,120]
[355643516,1741423844509,-3139.8,0.00049256,120]
[355643517,1741423844519,-3139.8,0.00049256,120]
[355643518,1741423844529,-800.0,0.00049261,14]
[355643519,1741423844538,-504.6639262,0.00049273,10]
[355643520,1741423844548,-506.97228073,0.00049273,10]
[355643521,1741423844557,-500.0,0.00049273,10]
[355643522,1741423844567,-521.00590337,0.00049273,2]
[355643523,1741423844576,-316.55450913,0.00049273,10]
[355643524,1741423844586,-500.0,0.00049273,10]
[355643525,1741423844595,-500.0,0.00049273,10]
[355643526,1741423844604,-500.0,0.00049273,10]
[355643527,1741423844614,-1000.0,0.00049287,120]
[355643528,1741423844623,-1000.0,0.00049287,120]
[355643529,1741423844632,-1000.0,0.00049287,120]
[355643530,1741423844643,-1000.0,0.00049287,120]
[355643531,1741423844652,-1000.0,0.00049287,120]
[355643532,1741423844662,-1000.0,0.00049287,120]
[355643533,1741423844671,-1000.0,0.00049287,120]
[355643534,1741423844681,-1000.0,0.00049287,120]
[355643535,1741423844690,-1000.0,0.00049287,120]
[355643536,1741423844700,-1038.58415534,0.00049287,120]
[355643537,1741423844709,-212.20923008,0.00049305,4]
[355643538,1741423844719,-9607.86414409,0.00049315,2]
[355643539,1741423844728,-495.6535919,0.00049315,120]
[355643540,1741423844738,-500.0,0.00049315,120]
[355643541,1741423844747,-500.0,0.00049315,120]
[355643542,1741423844756,-515.51752005,0.00049315,120]
[355643543,1741423844765,-500.0,0.00049315,120]
[355643544,1741423844774,-500.0,0.00049315,120]
[355643545,1741423844783,-500.0,0.00049315,120]
[355643546,1741423844793,-152.39975125,0.00049315,120]
[355643547,1741423844802,-151.0,0.00049315,120]
[355643548,1741423844811,-151.0,0.00049315,120]
[355643549,1741423844821,-151.0,0.00049315,120]
[355643550,1741423844830,-500.0,0.00049315,120]
[355643551,1741423844839,-502.32969201,0.00049315,120]
[355643552,1741423844848,-798.78,0.00049315,120]
[355643553,1741423844858,-500.0,0.00049315,120]
[355643554,1741423844872,-500.0,0.00049315,120]
[355643555,1741423844881,-1433.160284,0.00049315,3]
[355643556,1741423844891,-1433.160284,0.00049315,3]
[355643557,1741423844900,-1433.160284,0.00049315,3]
[355643558,1741423844911,-1433.160284,0.00049315,3]
[355643559,1741423844921,-1433.160284,0.00049315,3]
[355643560,1741423844931,-1433.160284,0.00049315,3]
[355643561,1741423844943,-1433.160284,0.00049315,3]
[355643562,1741423844952,-1433.160284,0.00049315,3]
[355643563,1741423844961,-500.0,0.00049315,120]
[355643564,1741423844972,-1433.160284,0.00049315,3]
[355643565,1741423844982,-1433.160284,0.00049315,3]
[355643566,1741423844993,-500.0,0.00049315,2]
[355643567,1741423845003,-500.0,0.00049315,120]
[355643568,1741423845013,-500.0,0.00049315,120]
[355643569,1741423845023,-505.97119795,0.00049315,120]
[355643570,1741423845033,-500.0,0.00049315,120]
[355643571,1741423845043,-307.19046025,0.00049315,120]
[355643572,1741423845151,-526.9089251,0.00049315,120]
[355643573,1741423845161,-506.81447175,0.00049315,120]
[355643574,1741423845170,-523.73678083,0.00049315,120]
[355643575,1741423845179,-500.0,0.00049315,120]
[355643576,1741423845189,-505.38054331,0.00049315,120]
[355643577,1741423845199,-500.0,0.00049315,2]
[355643578,1741423845208,-511.95814668,0.00049315,120]
[355643579,1741423845218,-500.0,0.00049315,120]
[355643580,1741423845227,-536.4954443,0.00049315,120]
[355643581,1741423845237,-521.6795734,0.00049315,120]
[355643582,1741423845246,-542.81784306,0.00049315,120]
[355643583,1741423845255,-506.56562248,0.00049315,120]
[355643584,1741423845265,-180.14888899,0.00049315,120]
[355643585,1741423845274,-360.60368396,0.00049315,120]
[355643586,1741423845283,-500.0,0.00049315,120]
[355643587,1741423845292,-500.0,0.00049315,120]
[355643588,1741423845302,-506.72108897,0.00049315,120]
[355643589,1741423845311,-500.0,0.00049315,120]
[355643590,1741423845321,-500.0,0.00049315,120]
[355643591,1741423845330,-840.48,0.00049315,120]
[355643592,1741423845339,-840.48,0.00049315,120]
[355643593,1741423845348,-840.48,0.00049315,120]
[355643594,1741423845357,-840.48,0.00049315,120]
[355643595,1741423845366,-840.48,0.00049315,120]
[355643596,1741423845375,-840.48,0.00049315,120]
[355643597,1741423845385,-840.48,0.00049315,120]
[355643598,1741423845394,-840.48,0.00049315,120]
[355643599,1741423845403,-840.48,0.00049315,120]
[355643600,1741423845413,-840.48,0.00049315,120]
[355643601,1741423845422,-840.48,0.00049315,120]
[355643602,1741423845432,-840.48,0.00049315,120]
[355643603,1741423845441,-840.48,0.00049315,120]
[355643604,1741423845451,-840.48,0.00049315,120]
[355643605,1741423845460,-840.48,0.00049315,120]
[355643606,1741423845469,-840.48,0.00049315,120]
[355643607,1741423845479,-840.48,0.00049315,120]
[355643608,1741423845488,-840.48,0.00049315,120]
[355643609,1741423845497,-840.48,0.00049315,120]
[355643610,1741423845507,-840.48,0.00049315,120]
[355643611,1741423845516,-840.48,0.00049315,120]
[355643612,1741423845525,-840.48,0.00049315,120]
[355643613,1741423845535,-840.48,0.00049315,120]
[355643614,1741423845544,-840.6047707,0.00049315,120]
[355643615,1741423845554,-798.61,0.00049315,2]
[355643616,1741423845563,-500.0,0.00049315,2]
[355643617,1741423845573,-515.69000512,0.00049315,120]
[355643618,1741423845582,-798.72,0.00049315,120]
[355643619,1741423845592,-500.0,0.00049315,120]
[355643620,1741423845601,-500.0,0.00049315,120]
[355643621,1741423845611,-500.0,0.00049315,120]
[355643622,1741423845621,-500.0,0.00049315,120]
[355643623,1741423845631,-500.0,0.00049315,120]
[355643624,1741423845641,-3173.15,0.00049315,120]
[355643625,1741423845651,-500.0,0.00049315,120]
[355643626,1741423845660,-500.0,0.00049315,120]
[355643627,1741423845670,-500.0,0.00049315,120]
[355643628,1741423845680,-500.0,0.00049315,120]
[355643629,1741423845690,-612.32,0.00049315,120]
[355643630,1741423845701,-500.0,0.00049315,120]
[355643631,1741423845711,-541.59856954,0.00049315,120]
[355643632,1741423845720,-500.0,0.00049315,120]
[355643633,1741423845729,-813.22,0.00049315,120]
[355643634,1741423845739,-1198.0,0.00049315,120]
[355643635,1741423845748,-500.0,0.00049315,120]
[355643636,1741423845757,-3245.28,0.00049315,120]
[355643638,1741423845767,-500.0,0.00049315,120]
[355643639,1741423845776,-5882.86,0.00049315,2]
[355643640,1741423845785,-5882.86,0.00049315,2]
[355643641,1741423845795,-5882.86,0.00049315,2]
[355643642,1741423845804,-5882.86,0.00049315,2]
[355643643,1741423845814,-5882.86,0.00049315,2]
[355643644,1741423845825,-5882.86,0.00049315,2]
[355643645,1741423845835,-5882.86,0.00049315,2]
[355643646,1741423845844,-5882.86,0.00049315,2]
[355643647,1741423845853,-5882.86,0.00049315,2]
[355643648,1741423845865,-5882.86,0.00049315,2]
[355643649,1741423845875,-5882.86,0.00049315,2]
[355643650,1741423845884,-5882.86,0.00049315,2]
[355643651,1741423845895,-5882.86,0.00049315,2]
[355643652,1741423845905,-5882.86,0.00049315,2]
[355643653,1741423845914,-5882.86,0.00049315,2]
[355643654,1741423845924,-5882.86,0.00049315,2]
[355643655,1741423845933,-5882.86,0.00049315,2]
[355643656,1741423845944,-5882.86,0.00049315,2]
[355643657,1741423845954,-5882.86,0.00049315,2]
[355643658,1741423845963,-5882.86,0.00049315,2]
[355643659,1741423845972,-2762.98689261,0.00049315,2]
[355643666,1741423846356,-717.48542138,0.00049315,2]
[355643667,1741423889648,999.0,0.00043835,120]
[355643668,1741423889930,969.79536259,0.00044657,120]
[355643669,1741423889957,29.20463741,0.00044657,120]
[355643675,1741424829123,-177.945455,0.0003589,2]
[355643676,1741424829144,-177.945455,0.00041211,2]
[355643677,1741424829165,-67.82491633,0.000415,120]
[355643678,1741424846087,-432.17508367,0.000415,120]
[355643679,1741424846116,-500.0,0.00042,120]
[355643680,1741424846143,-919.3973696,0.00042848,120]
[355643681,1741424846172,-295.2178564,0.00042997,2]
[355643682,1741424846207,-500.0,0.00043,120]
[355643683,1741424846233,-550.0,0.00044038,5]
[355643684,1741424846259,-3952.443242,0.00044039,2]
[355643685,1741424846286,-207.3124955,0.00044071,2]
[355643686,1741424846316,-203.4043045,0.00044165,2]
[355643687,1741424846343,-764.2171832,0.0004438,28]
[355643688,1741424846370,-233.63,0.00044434,30]
[355643689,1741424846396,-194.69,0.00044434,30]
[355643690,1741424846421,-162.25,0.00044434,30]
[355643691,1741424846446,-811.25,0.00044434,30]
[355643692,1741424846475,-500.0,0.00044443,2]
[355643693,1741424846500,-112695.86773258,0.00044444,120]
[355643694,1741424846524,-223.5562132,0.0004448,2]
[355643695,1741424846549,-170.0,0.00045418,120]
[355643696,1741424846574,-764.2171832,0.00045619,28]
[355643697,1741424846600,-278.68219187,0.000458,120]
[355643698,1741424846625,-500.0,0.00046075,2]
[355643699,1741424846650,-500.0,0.00046075,10]
[355643700,1741424846675,-500.0,0.00046075,2]
[355643701,1741424846700,-500.0,0.00046075,10]
[355643702,1741424846727,-177.945455,0.00046532,2]
[355643703,1741424846751,-500.0,0.00046575,120]
[355643704,1741424846777,-500.0,0.00046575,120]
[355643705,1741424846801,-500.0,0.00046575,120]
[355643706,1741424846825,-500.0,0.00046575,120]
[355643707,1741424846850,-500.0,0.00046575,120]
[355643708,1741424846877,-500.0,0.00046575,120]
[355643709,1741424846904,-500.0,0.00046575,120]
[355643710,1741424846927,-500.0,0.00046575,120]
[355643711,1741424846949,-500.0,0.00046575,120]
[355643712,1741424847112,-500.0,0.00046575,120]
[355643713,1741424847140,-500.0,0.00046575,120]
[355643714,1741424847162,-500.0,0.00046575,120]
[355643715,1741424847184,-500.0,0.00046575,120]
[355643716,1741424847208,-500.0,0.00046575,120]
[355643717,1741424847230,-337.69537,0.00046575,120]
[355643718,1741424847251,-500.0,0.00046575,120]
[355643719,1741424847273,-500.0,0.00046575,120]
[355643720,1741424847294,-500.0,0.00046575,120]
[355643721,1741424847314,-500.0,0.00046575,120]
[355643722,1741424847334,-500.0,0.00046575,120]
[355643723,1741424847354,-500.0,0.00046575,120]
[355643724,1741424847375,-500.0,0.00046575,120]
[355643725,1741424847395,-500.0,0.00046575,120]
[355643726,1741424847416,-500.0,0.00046575,120]
[355643727,1741424847436,-500.0,0.00046575,120]